bitfinex/quotes_BTCUSD_20250619
["timestamp","ask_amount","ask_price","bid_price","bid_amount"]
[1750375048575,4.14723194,104930.0,104920.0,0.04902111]
[1750375048780,4.14723194,104930.0,104920.0,0.23964253]
[1750375049422,4.14723194,104930.0,104920.0,0.04902111]
[1750375049636,4.14723194,104930.0,104920.0,0.03949004]
[1750375049860,4.30387194,104930.0,104920.0,0.03949004]
[1750375050107,4.30496194,104930.0,104920.0,0.03949004]
[1750375051206,4.30496194,104930.0,104920.0,0.23011146]
[1750375051632,4.30496194,104930.0,104920.0,0.03949004]
[1750375051867,4.30496194,104930.0,104920.0,0.23011146]
[1750375052786,4.30496194,104930.0,104920.0,0.23964253]
[1750375053110,4.30496194,104930.0,104920.0,0.24917351]
[1750375053287,4.30495791,104930.0,104920.0,0.24917351]
[1750375053669,4.30386791,104930.0,104920.0,0.24917351]
[1750375054274,4.30238791,104930.0,104920.0,0.24917351]
[1750375055932,4.30238791,104930.0,104920.0,0.03949004]
[1750375056147,4.30239011,104930.0,104920.0,0.23011146]
[1750375056359,4.30239011,104930.0,104920.0,0.24917341]
[1750375056817,4.31192009,104930.0,104920.0,0.2587042]
[1750375057261,4.31399993,104930.0,104920.0,0.26823481]
[1750375057476,3.97568655,104930.0,104920.0,0.27874524]
[1750375057922,3.97568627,104930.0,104920.0,0.27874524]
[1750375058358,4.19487936,104930.0,104920.0,0.27874524]
[1750375058999,4.00427608,104930.0,104920.0,0.27874524]
[1750375059222,4.00427608,104930.0,104920.0,0.2596842]
[1750375059223,4.1853499,104930.0,104920.0,0.2596842]
[1750375059490,4.17582029,104930.0,104920.0,0.2692149]
[1750375060554,4.17582029,104930.0,104920.0,0.24062253]
[1750375060773,4.17582029,104930.0,104920.0,0.2596842]
[1750375061614,4.15676061,104930.0,104920.0,0.24917341]
[1750375061975,4.14723045,104930.0,104920.0,0.03949004]
[1750375062190,4.30403697,104930.0,104920.0,0.03949004]
[1750375062597,4.32691431,104930.0,104920.0,0.03949004]
[1750375062812,4.35608679,104930.0,104920.0,0.03949004]
[1750375063018,4.45136572,104930.0,104920.0,9.004e-05]
[1750375063460,4.28648372,104930.0,104920.0,9.004e-05]
[1750375064540,4.25840147,104930.0,104920.0,0.01869004]
[1750375064719,4.03263654,104930.0,104920.0,0.23914253]
[1750375064943,4.02429412,104930.0,104920.0,0.24991332]
[1750375065367,4.00141506,104930.0,104920.0,0.24991332]
[1750375065595,4.00141506,104930.0,104920.0,0.25944402]
[1750375065797,4.02429832,104930.0,104920.0,0.25944402]
[1750375066207,3.83469507,104930.0,104920.0,0.26897454]
[1750375066420,4.02529832,104930.0,104920.0,0.27850497]
[1750375066889,3.84422786,104930.0,104920.0,0.27850497]
[1750375069561,3.8213446,104930.0,104920.0,0.27850497]
[1750375070767,3.83087467,104930.0,104920.0,0.27850497]
[1750375070990,4.02147792,104930.0,104920.0,0.27850497]
[1750375071280,3.83087467,104930.0,104920.0,0.27850497]
[1750375071506,0.34994031,104930.0,104920.0,0.35474991]
[1750375071743,0.54994031,104930.0,104920.0,0.35474991]
[1750375071968,0.35946965,104930.0,104920.0,0.35474991]
[1750375072194,0.34994031,104930.0,104920.0,0.35474991]
[1750375072416,0.55946974,104930.0,104920.0,0.35474991]
[1750375072636,0.34994031,104930.0,104920.0,0.35474991]
[1750375072877,0.35946965,104930.0,104920.0,0.35474991]
[1750375073366,0.35946859,104930.0,104920.0,0.35474991]
[1750375073840,0.54993925,104930.0,104920.0,0.35474991]
[1750375074504,0.35946868,104930.0,104920.0,0.35474991]
[1750375075010,0.54993925,104930.0,104920.0,0.35474991]
[1750375075445,0.54993642,104930.0,104920.0,0.35474991]
[1750375078955,0.549933,104930.0,104920.0,0.35474991]
[1750375079592,0.549933,104930.0,104920.0,0.45002884]
[1750375079593,0.341,104930.0,104920.0,0.45002884]
[1750375084782,0.341,104930.0,104920.0,0.3737839]
[1750375086038,0.001,104930.0,104920.0,0.3737839]
[1750375093649,0.07695818,104950.0,104940.0,0.0399]
[1750375093862,3.5286972,104950.0,104940.0,0.25907193]
[1750375094062,3.50964061,104950.0,104940.0,0.26860064]
[1750375094322,3.50011281,104950.0,104940.0,0.26938064]
[1750375094773,0.05829771,104950.0,104940.0,0.26938064]
[1750375095019,0.25829771,104950.0,104940.0,0.26938064]
[1750375095243,0.26782542,104950.0,104940.0,0.26938064]
[1750375095468,0.2783534,104950.0,104940.0,0.26938064]
[1750375096145,0.40882542,104950.0,104940.0,0.26938064]
[1750375096774,0.39929771,104950.0,104940.0,0.26938064]
[1750375097228,0.40882533,104950.0,104940.0,0.26938064]
[1750375097683,0.40882533,104950.0,104940.0,0.26860064]
[1750375097898,0.39929771,104950.0,104940.0,0.26978064]
[1750375098106,0.40882542,104950.0,104940.0,0.26978064]
[1750375101085,0.40882542,104950.0,104940.0,0.42622064]
[1750375101690,0.01905523,104950.0,104940.0,0.42622064]
[1750375101909,0.21905523,104950.0,104940.0,0.42622064]
[1750375103738,0.40793851,104950.0,104940.0,0.42622064]
[1750375104165,0.41746667,104950.0,104940.0,0.42622064]
[1750375104970,0.42699492,104950.0,104940.0,0.42622064]
[1750375105183,0.41746658,104950.0,104940.0,0.42622064]
[1750375105844,0.08699474,104950.0,104940.0,0.42622064]
[1750375106050,0.28699474,104950.0,104940.0,0.42622064]
[1750375108160,0.26793851,104950.0,104940.0,0.42622064]
[1750375108383,0.27746658,104950.0,104940.0,0.42622064]
[1750375108616,0.24888291,104950.0,104940.0,0.42622064]
[1750375108835,0.26793869,104950.0,104940.0,0.42622064]
[1750375109288,0.23935539,104950.0,104940.0,0.52031957]
[1750375109508,0.03935539,104950.0,104940.0,0.52149957]
[1750375109961,0.36655041,104960.0,104950.0,0.25725087]
[1750375110222,0.36655041,104960.0,104950.0,0.25843087]
[1750375110441,0.0170237,104960.0,104950.0,0.25843087]
[1750375110654,0.02655032,104960.0,104950.0,0.25843087]
[1750375110871,0.03607712,104960.0,104950.0,0.25843087]
[1750375111093,0.07549835,104960.0,104950.0,0.25843087]
[1750375111342,0.03607712,104960.0,104950.0,0.25843087]
[1750375111571,0.05513135,104960.0,104950.0,0.25843087]
[1750375112843,0.05513126,104960.0,104950.0,0.25843087]
[1750375113863,0.06405457,104960.0,104950.0,0.25843087]
[1750375114125,0.05452741,104960.0,104950.0,0.25843087]
[1750375114343,0.06405457,104960.0,104950.0,0.25843087]
[1750375114766,0.10310644,104960.0,104950.0,0.25843087]
[1750375114994,0.0840523,104960.0,104950.0,0.25843087]
[1750375115207,0.09357928,104960.0,104950.0,0.25843087]
[1750375115461,0.0840523,104960.0,104950.0,0.25843087]
[1750375115669,0.09357928,104960.0,104950.0,0.25843087]
[1750375116104,0.10310644,104960.0,104950.0,0.25843087]
[1750375116337,0.11263369,104960.0,104950.0,0.25843087]
[1750375116774,0.09357928,104960.0,104950.0,0.25843087]
[1750375116993,0.10310635,104960.0,104950.0,0.25843087]
[1750375118507,0.29365513,104960.0,104950.0,0.24772316]
[1750375118726,0.3031831,104960.0,104950.0,0.26796885]
[1750375119441,0.11263414,104960.0,104950.0,0.27749656]
[1750375121571,0.30318602,104960.0,104950.0,0.27749656]
[1750375123294,0.30318602,104960.0,104950.0,0.23819518]
[1750375123524,0.40962289,104950.0,104940.0,0.0416]
[1750375123747,0.20964323,104940.0,104930.0,0.0208]
[1750375123972,0.40013323,104930.0,104920.0,0.24014253]
[1750375124194,0.40013323,104930.0,104920.0,0.24967351]
[1750375124195,0.40905901,104930.0,104920.0,0.24967351]
[1750375124409,0.40906514,104930.0,104920.0,0.24967351]
[1750375124627,0.40906514,104930.0,104920.0,0.02932111]
[1750375125073,0.40906514,104930.0,104920.0,0.22947351]
[1750375125508,0.40013323,104930.0,104920.0,0.25950421]
[1750375125996,0.7065856,104930.0,104920.0,9.004e-05]
[1750375126208,4.1494006,104930.0,104920.0,9.004e-05]
[1750375126422,4.1494006,104930.0,104920.0,0.00109004]
[1750375126846,4.14940037,104930.0,104920.0,0.00109004]
[1750375127325,4.14940037,104930.0,104920.0,0.00209004]
[1750375127557,4.14940037,104930.0,104920.0,0.24250384]
[1750375127558,3.81079691,104930.0,104920.0,0.24250384]
[1750375127779,0.73404438,104930.0,104920.0,0.25536332]
[1750375128438,0.72451495,104930.0,104920.0,0.25536332]
[1750375128659,0.71498525,104930.0,104920.0,0.25536332]
[1750375128873,0.71498525,104930.0,104920.0,0.25417332]
[1750375129325,0.71498525,104930.0,104920.0,0.26489402]
[1750375129545,0.70606311,104930.0,104920.0,0.26489402]
[1750375129764,0.55919327,104930.0,104920.0,0.27442463]
[1750375129976,0.71591327,104930.0,104920.0,0.28395515]
[1750375130630,0.70638311,104930.0,104920.0,0.27442408]
[1750375131010,0.70638311,104930.0,104920.0,0.26489356]
[1750375132782,0.70638311,104930.0,104920.0,0.24464253]
[1750375133016,0.69685332,104930.0,104920.0,0.25417351]
[1750375133454,0.68732325,104930.0,104920.0,0.25417351]
[1750375133694,0.68732325,104930.0,104920.0,0.24464253]
[1750375134111,0.68732325,104930.0,104920.0,0.25417351]
[1750375134338,0.69685332,104930.0,104920.0,0.26370439]
[1750375134556,0.69685332,104930.0,104920.0,0.24464253]
[1750375134992,0.69685332,104930.0,104920.0,0.26370421]
[1750375136117,0.69685332,104930.0,104920.0,0.22344244]
[1750375136551,0.69794332,104930.0,104920.0,0.23297332]
[1750375137200,0.69794332,104930.0,104920.0,0.22344244]
[1750375137849,0.69794332,104930.0,104920.0,0.23297332]
[1750375138297,0.69794332,104930.0,104920.0,0.24250411]
[1750375138539,0.69794332,104930.0,104920.0,0.25203481]
[1750375139412,0.69685332,104930.0,104920.0,0.27323481]
[1750375139629,0.70638311,104930.0,104920.0,0.28276542]
[1750375139847,0.70638311,104930.0,104920.0,0.27323481]
[1750375140713,0.69685332,104930.0,104920.0,0.26370411]
[1750375141673,0.68732325,104930.0,104920.0,0.02329004]
[1750375141877,0.68841325,104930.0,104920.0,0.02329004]
[1750375142313,4.13122825,104930.0,104920.0,0.00209004]
[1750375142976,4.13122825,104930.0,104920.0,0.02209004]
[1750375149210,4.13122825,104930.0,104920.0,0.04139004]
[1750375151257,4.13222825,104930.0,104920.0,0.04139004]
[1750375152100,3.97441825,104930.0,104920.0,0.25107351]
[1750375152307,4.15871584,104930.0,104920.0,0.27126482]
[1750375152727,3.97764202,104930.0,104920.0,0.28079525]
[1750375152935,3.81179149,104930.0,104920.0,0.28079525]
[1750375153141,0.37850619,104930.0,104920.0,0.28079525]
[1750375153350,0.41091899,104930.0,104920.0,0.28079525]
[1750375154591,0.61105231,104930.0,104920.0,0.28079525]
[1750375155003,0.42044906,104930.0,104920.0,0.28079525]
[1750375155626,0.61105231,104930.0,104920.0,0.28079525]
[1750375155828,0.41091899,104930.0,104920.0,0.28079525]
[1750375157943,0.61105313,104930.0,104920.0,0.28079525]
[1750375158510,0.61107592,104930.0,104920.0,0.28079525]
[1750375159115,0.60154631,104930.0,104920.0,0.2617343]
[1750375159296,0.59201661,104930.0,104920.0,0.25220351]
[1750375159693,0.59201661,104930.0,104920.0,0.25107351]
[1750375159900,4.02530163,104930.0,104920.0,0.24154253]
[1750375160676,4.02530163,104930.0,104920.0,0.26060439]
[1750375161310,4.0163613,104930.0,104920.0,0.26060439]
[1750375161525,0.54820289,104930.0,104920.0,0.28079552]
[1750375161741,0.41094239,104930.0,104920.0,0.28079552]
[1750375161953,0.61107578,104930.0,104920.0,0.28079552]
[1750375162177,0.41094237,104930.0,104920.0,0.28079552]
[1750375162606,0.61107569,104930.0,104920.0,0.28079552]
[1750375163030,0.61107633,104930.0,104920.0,0.2807957]
[1750375164212,0.60154672,104930.0,104920.0,0.2807957]
[1750375164435,0.59201683,104930.0,104920.0,0.27126509]
[1750375165381,0.59201683,104930.0,104920.0,0.2807957]
[1750375167439,0.58248685,104930.0,104920.0,0.27126509]
[1750375168809,0.58248685,104930.0,104920.0,0.2807957]
[1750375169019,0.3918836,104930.0,104920.0,0.28079506]
[1750375169227,0.39188323,104930.0,104920.0,0.28079506]
[1750375169418,0.59201664,104930.0,104920.0,0.28079506]
[1750375169666,0.59201664,104930.0,104920.0,0.27126463]
[1750375170075,0.5920165,104930.0,104920.0,0.27126463]
[1750375170280,0.5920165,104930.0,104920.0,0.28079515]
[1750375170710,0.40141325,104930.0,104920.0,0.28079515]
[1750375170924,0.39188309,104930.0,104920.0,0.2807946]
[1750375171127,0.40141252,104930.0,104920.0,0.2807946]
[1750375171541,0.39188236,104930.0,104920.0,0.2807946]
[1750375171756,0.54994041,104930.0,104920.0,0.2807946]
[1750375171974,0.35946984,104930.0,104920.0,0.2807946]
[1750375172197,0.34994041,104930.0,104920.0,0.2807946]
[1750375172419,0.00994041,104930.0,104920.0,0.37607353]
[1750375172854,0.00994041,104930.0,104920.0,0.53239353]
[1750375173064,0.01946975,104930.0,104920.0,0.53239353]
[1750375173512,0.02899927,104930.0,104920.0,0.53239353]
[1750375173725,0.01946975,104930.0,104920.0,0.53239353]
[1750375174561,0.00994041,104930.0,104920.0,0.53239353]
[1750375175824,0.00993385,104930.0,104920.0,0.53239353]
[1750375178284,0.001,104930.0,104920.0,0.53239353]
[1750375195820,0.01052934,104930.0,104920.0,0.53239353]
[1750375197284,0.001,104930.0,104920.0,0.53239353]
[1750375198783,0.22878785,104940.0,104930.0,0.21919263]
[1750375199022,0.22878785,104940.0,104930.0,0.26369272]
[1750375199023,0.23772047,104940.0,104930.0,0.26369272]
[1750375199447,0.23772047,104940.0,104930.0,0.27424224]
[1750375199662,0.42830556,104940.0,104930.0,0.27424224]
[1750375199865,0.43783481,104940.0,104930.0,0.27424224]
[1750375200073,0.43983481,104940.0,104930.0,0.27424224]
[1750375201379,0.43983481,104940.0,104930.0,0.25518311]
[1750375201593,0.43030601,104940.0,104930.0,0.25518311]
[1750375202499,0.41124796,104940.0,104930.0,0.21290325]
[1750375202724,0.4017188,104940.0,104930.0,0.23196348]
[1750375203412,0.74013314,104930.0,104920.0,0.24324234]
[1750375203630,0.55859574,104930.0,104920.0,0.20977332]
[1750375204300,0.56812544,104930.0,104920.0,0.21930402]
[1750375204518,0.56812544,104930.0,104920.0,0.25003463]
[1750375204734,0.55859574,104930.0,104920.0,0.25003481]
[1750375205392,0.55968574,104930.0,104920.0,0.25003481]
[1750375206247,0.56068574,104930.0,104920.0,0.25003481]
[1750375206691,0.55115585,104930.0,104920.0,0.20024244]
[1750375207142,0.55115585,104930.0,104920.0,0.19071146]
[1750375207358,0.54162587,104930.0,104920.0,9.004e-05]
[1750375207581,4.00924087,104930.0,104920.0,9.004e-05]
[1750375208021,3.98444087,104930.0,104920.0,9.004e-05]
[1750375208696,3.98444178,104930.0,104920.0,9.004e-05]
[1750375209553,4.14072178,104930.0,104920.0,9.004e-05]
[1750375209998,4.13178825,104930.0,104920.0,9.004e-05]
[1750375211370,4.14072001,104930.0,104920.0,9.004e-05]
[1750375211636,4.18140001,104930.0,104920.0,9.004e-05]
[1750375212585,4.18139866,104930.0,104920.0,9.004e-05]
[1750375215455,4.18139763,104930.0,104920.0,9.004e-05]
[1750375218305,4.18139671,104930.0,104920.0,0.02119004]
[1750375218803,4.21003771,104930.0,104920.0,0.02119004]
[1750375221154,4.20110925,104930.0,104920.0,0.23171146]
[1750375221356,4.05266716,104930.0,104920.0,0.24124234]
[1750375221622,4.20894716,104930.0,104920.0,0.24245234]
[1750375222087,4.20894716,104930.0,104920.0,0.24124234]
[1750375223759,4.20894716,104930.0,104920.0,0.25077313]
[1750375223996,4.20894688,104930.0,104920.0,0.25077313]
[1750375224255,4.01198688,104930.0,104920.0,0.25077313]
[1750375224507,4.16826688,104930.0,104920.0,0.25077313]
[1750375225068,4.01198688,104930.0,104920.0,0.25077313]
[1750375225299,4.16826688,104930.0,104920.0,0.25077313]
[1750375226814,4.16826688,104930.0,104920.0,0.26030383]
[1750375227029,4.16826728,104930.0,104920.0,0.26030383]
[1750375227549,4.16826728,104930.0,104920.0,0.26151383]
[1750375227943,4.16826728,104930.0,104920.0,0.27104444]
[1750375228137,4.15933925,104930.0,104920.0,0.27104444]
[1750375228351,4.16826776,104930.0,104920.0,0.27104444]
[1750375229100,3.98715394,104930.0,104920.0,0.28057487]
[1750375229284,3.82133225,104930.0,104920.0,0.28057487]
[1750375229494,3.83086223,104930.0,104920.0,0.28057487]
[1750375229711,3.84039333,104930.0,104920.0,0.28057487]
[1750375230165,4.03099658,104930.0,104920.0,0.28057487]
[1750375230364,4.03099731,104930.0,104920.0,0.28057487]
[1750375232044,3.88027765,104930.0,104920.0,0.28057487]
[1750375232255,3.88027961,104930.0,104920.0,0.28057487]
[1750375232655,3.88028116,104930.0,104920.0,0.28057487]
[1750375233286,3.87075164,104930.0,104920.0,0.27104444]
[1750375233782,3.87075443,104930.0,104920.0,0.27104444]
[1750375233937,3.87075443,104930.0,104920.0,0.28057496]
[1750375235060,3.86122464,104930.0,104920.0,0.27104444]
[1750375238396,3.86123113,104930.0,104920.0,0.27104444]
[1750375240212,3.88987013,104930.0,104920.0,0.27104444]
[1750375240640,3.68973672,104930.0,104920.0,0.28057487]
[1750375240891,3.68020628,104930.0,104920.0,0.28057487]
[1750375241172,3.6802062,104930.0,104920.0,0.28057487]
[1750375242059,3.70309846,104930.0,104920.0,0.28057487]
[1750375242527,3.72215814,104930.0,104920.0,0.28057487]
[1750375243429,3.73168748,104930.0,104920.0,0.28057487]
[1750375245580,3.73168739,104930.0,104920.0,0.28057487]
[1750375245793,3.74121737,104930.0,104920.0,0.28057487]
[1750375248018,3.73168739,104930.0,104920.0,0.28057487]
[1750375248424,3.70879513,104930.0,104920.0,0.28057487]
[1750375248631,3.70879522,104930.0,104920.0,0.28057487]
[1750375248832,3.70879513,104930.0,104920.0,0.28057487]
[1750375253528,3.70775513,104930.0,104920.0,0.28057487]
[1750375256255,3.70775513,104930.0,104920.0,0.27936487]
[1750375256498,0.19818259,104930.0,104920.0,0.43680487]
[1750375256721,0.19818259,104930.0,104920.0,0.5320838]
[1750375256978,0.001,104930.0,104920.0,0.5320838]
[1750375273357,0.001,104930.0,104920.0,0.3758838]
[1750375273586,0.02005886,104930.0,104920.0,0.43548487]
[1750375273775,0.02958856,104930.0,104920.0,0.43548487]
[1750375274391,0.02958856,104930.0,104920.0,0.43638487]
[1750375274392,0.02005886,104930.0,104920.0,0.43638487]
[1750375274600,0.02958856,104930.0,104920.0,0.43638487]
[1750375274802,0.02005886,104930.0,104920.0,0.43638487]
[1750375275003,0.02958847,104930.0,104920.0,0.43638487]
[1750375275656,0.02005886,104930.0,104920.0,0.43638487]
[1750375276271,0.02958847,104930.0,104920.0,0.43638487]
[1750375276835,0.03911826,104930.0,104920.0,0.43638487]
[1750375277035,0.02958847,104930.0,104920.0,0.43638487]
[1750375277460,0.03911826,104930.0,104920.0,0.43638487]
[1750375277865,0.02958847,104930.0,104920.0,0.43638487]
[1750375278289,0.02005886,104930.0,104920.0,0.43638487]
[1750375279231,0.22019263,104930.0,104920.0,0.24124253]
[1750375279428,0.26673534,104930.0,104920.0,0.24993482]
[1750375279651,0.23865313,104930.0,104920.0,0.41554534]
[1750375279881,0.03851972,104930.0,104920.0,0.4155447]
[1750375280097,0.03851963,104930.0,104920.0,0.4364447]
[1750375280527,0.02898965,104930.0,104920.0,0.4364447]
[1750375280746,0.03852072,104930.0,104920.0,0.4364447]
[1750375281157,0.02958929,104930.0,104920.0,0.4364447]
[1750375282622,0.0295892,104930.0,104920.0,0.4364447]
[1750375282831,0.03852239,104930.0,104920.0,0.4364447]
[1750375283725,0.01052952,104930.0,104920.0,0.4374547]
[1750375283937,0.01052943,104930.0,104920.0,0.4374547]
[1750375284586,0.001,104930.0,104920.0,0.4374547]
[1750375284803,0.01052943,104930.0,104920.0,0.4374547]
[1750375285244,0.02005904,104930.0,104920.0,0.4374547]
[1750375285676,0.01052943,104930.0,104920.0,0.4374547]
[1750375286093,0.001,104930.0,104920.0,0.4374547]
[1750375286334,0.01052943,104930.0,104920.0,0.4374547]
[1750375286543,0.201,104930.0,104920.0,0.4374547]
[1750375286765,0.001,104930.0,104920.0,0.53273363]
[1750375297600,0.54,104940.0,104930.0,0.26249263]
[1750375297858,0.54893549,104940.0,104930.0,0.35894156]
[1750375298534,0.34893549,104940.0,104930.0,0.35894156]
[1750375298760,0.34893549,104940.0,104930.0,0.36094156]
[1750375298990,0.54893549,104940.0,104930.0,0.36094156]
[1750375299685,0.34893549,104940.0,104930.0,0.36094156]
[1750375301313,0.34893458,104940.0,104930.0,0.36094156]
[1750375304166,0.34893332,104940.0,104930.0,0.36094156]
[1750375304637,0.35846175,104940.0,104930.0,0.36094156]
[1750375305387,0.34893332,104940.0,104930.0,0.36094156]
[1750375306325,0.34893202,104940.0,104930.0,0.36094156]
[1750375306547,0.34,104940.0,104930.0,0.36094156]
[1750375306765,0.34893202,104940.0,104930.0,0.36094156]
[1750375306973,0.34,104940.0,104930.0,0.36094156]
[1750375312737,0.34893243,104940.0,104930.0,0.36094156]
[1750375312944,0.34893244,104940.0,104930.0,0.36094156]
[1750375313144,0.34893243,104940.0,104930.0,0.36094156]
[1750375313412,0.34,104940.0,104930.0,0.36094156]
[1750375313615,0.34893245,104940.0,104930.0,0.36094156]
[1750375313902,0.34,104940.0,104930.0,0.36094156]
[1750375314115,0.34893247,104940.0,104930.0,0.36094156]
[1750375314967,0.00893247,104940.0,104930.0,0.36094156]
[1750375316491,0.34,104950.0,104940.0,0.26117175]
[1750375316759,0.35846118,104950.0,104940.0,0.41834175]
[1750375317625,0.36798898,104950.0,104940.0,0.41834175]
[1750375317846,0.36898898,104950.0,104940.0,0.41834175]
[1750375319795,0.35946118,104950.0,104940.0,0.41834175]
[1750375320217,0.35664118,104950.0,104940.0,0.41834175]
[1750375320631,0.36616898,104950.0,104940.0,0.41834175]
[1750375322011,0.36616889,104950.0,104940.0,0.41834175]
[1750375322232,0.35664118,104950.0,104940.0,0.41834175]
[1750375322448,0.34711356,104950.0,104940.0,0.51362068]
[1750375324125,0.35664315,104950.0,104940.0,0.51362068]
[1750375324414,0.34711563,104950.0,104940.0,0.51362068]
[1750375326938,0.35664325,104950.0,104940.0,0.51362068]
[1750375327168,0.34711639,104950.0,104940.0,0.51362068]
[1750375327821,0.35664391,104950.0,104940.0,0.51362068]
[1750375329818,0.34770752,104950.0,104940.0,0.51362068]
[1750375330065,0.556643,104950.0,104940.0,0.51362068]
[1750375330291,0.356643,104950.0,104940.0,0.51362068]
[1750375330517,0.36617062,104950.0,104940.0,0.51362068]
[1750375330733,0.356643,104950.0,104940.0,0.51362068]
[1750375331896,0.36617066,104950.0,104940.0,0.51362068]
[1750375332145,0.35664304,104950.0,104940.0,0.51362068]
[1750375332592,0.34711552,104950.0,104940.0,0.51362068]
[1750375333676,0.35664314,104950.0,104940.0,0.51362068]
[1750375333868,0.34711552,104950.0,104940.0,0.51362068]
[1750375334073,0.20993552,104950.0,104940.0,0.51362068]
[1750375334522,0.01946304,104950.0,104940.0,0.51362068]
[1750375334725,0.00993552,104950.0,104940.0,0.51362068]
[1750375335365,0.20993468,104950.0,104940.0,0.51362068]
[1750375335816,0.2194622,104950.0,104940.0,0.51362068]
[1750375336028,0.00993468,104950.0,104940.0,0.51362068]
[1750375338205,0.0194622,104950.0,104940.0,0.51358068]
[1750375338427,0.02898991,104950.0,104940.0,0.51358068]
[1750375338652,0.02898998,104950.0,104940.0,0.51358068]
[1750375338870,0.01946227,104950.0,104940.0,0.51358068]
[1750375339098,0.02898998,104950.0,104940.0,0.51358068]
[1750375339316,0.02898989,104950.0,104940.0,0.51358068]
[1750375339860,0.03851769,104950.0,104940.0,0.51358068]
[1750375340068,0.0385176,104950.0,104940.0,0.51358068]
[1750375340506,0.02898989,104950.0,104940.0,0.51358068]
[1750375341349,0.01946249,104950.0,104940.0,0.51358068]
[1750375343038,0.00993497,104950.0,104940.0,0.51358068]
[1750375343268,0.20993497,104950.0,104940.0,0.51358068]
[1750375343908,0.00993497,104950.0,104940.0,0.51358068]
[1750375344099,0.21946249,104950.0,104940.0,0.51358068]
[1750375344309,0.01946249,104950.0,104940.0,0.51358068]
[1750375345850,0.02899011,104950.0,104940.0,0.51358068]
[1750375346684,0.03851791,104950.0,104940.0,0.51358068]
[1750375346847,0.04804589,104950.0,104940.0,0.51358068]
[1750375347256,3.85899967,104960.0,104950.0,0.20962334]
[1750375347506,3.89975795,104960.0,104950.0,0.20962334]
[1750375348343,3.88188147,104960.0,104950.0,0.21915141]
[1750375348627,3.90075939,104960.0,104950.0,0.21915141]
[1750375350000,3.90075959,104960.0,104950.0,0.21915141]
[1750375350211,3.90075959,104960.0,104950.0,0.24015141]
[1750375350832,3.92829692,104960.0,104950.0,0.24015141]
[1750375351254,3.74618392,104960.0,104950.0,0.24015141]
[1750375351465,3.72830508,104960.0,104950.0,0.2817571]
[1750375351880,3.70542328,104960.0,104950.0,0.2817571]
[1750375352925,3.70542328,104960.0,104950.0,0.4376371]
[1750375354192,3.68636977,104960.0,104950.0,0.37695603]
[1750375354410,3.69589639,104960.0,104950.0,0.37695603]
[1750375354622,3.70542319,104960.0,104950.0,0.53283603]
[1750375354834,3.69589639,104960.0,104950.0,0.53283603]
[1750375355323,3.7054231,104960.0,104950.0,0.53283603]
[1750375356024,3.69589639,104960.0,104950.0,0.53283603]
[1750375356505,0.24355477,104960.0,104950.0,0.53283603]
[1750375357164,0.02853733,104960.0,104950.0,0.53283603]
[1750375357650,27.72806546,104970.0,104960.0,0.85064464]
[1750375357651,27.67495829,104970.0,104960.0,0.85064464]
[1750375357876,27.67495829,104970.0,104960.0,0.94592357]
[1750375358327,27.67495829,104970.0,104960.0,1.14224357]
[1750375358328,27.63213829,104970.0,104960.0,1.14224357]
[1750375358557,27.59073829,104970.0,104960.0,1.65848851]
[1750375359026,27.59073829,104970.0,104960.0,1.74757855]
[1750375359257,27.14943829,104970.0,104960.0,1.89757855]
[1750375359504,27.14943829,104970.0,104960.0,2.01137855]
[1750375359505,25.46703829,104970.0,104960.0,2.01137855]
[1750375359728,25.46703829,104970.0,104960.0,2.01337855]
[1750375359964,25.46703829,104970.0,104960.0,1.21086981]
[1750375360210,25.46703829,104970.0,104960.0,1.20070171]
[1750375360446,25.46703829,104970.0,104960.0,0.40349896]
[1750375360690,25.5157505,104970.0,104960.0,0.55929896]
[1750375360904,25.5363505,104970.0,104960.0,0.55929896]
[1750375361123,25.51006829,104970.0,104960.0,0.40349896]
[1750375361372,25.51006829,104970.0,104960.0,0.55029896]
[1750375361600,25.51959418,104970.0,104960.0,0.40649896]
[1750375361825,25.51006829,104970.0,104960.0,0.40649896]
[1750375362050,25.51006829,104970.0,104960.0,0.55529896]
[1750375362292,25.51006829,104970.0,104960.0,0.55929896]
[1750375362508,25.519594,104970.0,104960.0,0.55929896]
[1750375363826,25.53864605,104970.0,104960.0,0.46402003]
[1750375364092,25.53864605,104970.0,104960.0,0.38402003]
[1750375364093,25.54817239,104970.0,104960.0,0.38402003]
[1750375364309,25.53864587,104970.0,104960.0,0.38402003]
[1750375364535,25.55769828,104970.0,104960.0,0.38402003]
[1750375365052,25.73870319,104970.0,104960.0,0.22822021]
[1750375365271,25.73870319,104970.0,104960.0,0.3935471]
[1750375365859,25.55769901,104970.0,104960.0,0.4030739]
[1750375366772,25.54817257,104970.0,104960.0,0.4030739]
[1750375367720,25.54817257,104970.0,104960.0,0.3980739]
[1750375367966,25.54817257,104970.0,104960.0,0.3940739]
[1750375368190,25.54817257,104970.0,104960.0,0.4000739]
[1750375368867,25.53864623,104970.0,104960.0,0.4000739]
[1750375369090,25.54817257,104970.0,104960.0,0.4000739]
[1750375369767,25.72917776,104970.0,104960.0,0.16185004]
[1750375370001,29.50246669,104970.0,104960.0,0.00609004]
[1750375370296,29.66713276,104970.0,104960.0,0.00609004]
[1750375370967,29.66713276,104970.0,104960.0,0.00309004]
[1750375371196,29.6671344,104970.0,104960.0,0.00309004]
[1750375371418,29.6671344,104970.0,104960.0,0.00109004]
[1750375372077,29.6671344,104970.0,104960.0,0.00209004]
[1750375372986,29.66713589,104970.0,104960.0,0.00209004]
[1750375374137,29.66713589,104970.0,104960.0,0.21169332]
[1750375374341,29.66713756,104970.0,104960.0,0.22122021]
[1750375374562,29.47660694,104970.0,104960.0,0.23074701]
[1750375374782,29.46708041,104970.0,104960.0,0.23074701]
[1750375374997,29.47660639,104970.0,104960.0,0.23074701]
[1750375375214,29.48613219,104970.0,104960.0,0.23074701]
[1750375375432,29.49565853,104970.0,104960.0,0.23074701]
[1750375377436,29.32084594,104970.0,104960.0,0.23074701]
[1750375377937,29.32084746,104970.0,104960.0,0.23074701]
[1750375378369,29.33037362,104970.0,104960.0,0.23074701]
[1750375378588,29.32084728,104970.0,104960.0,0.23074701]
[1750375378805,29.31132148,104970.0,104960.0,0.23074701]
[1750375379028,29.32084737,104970.0,104960.0,0.23074701]
[1750375379466,29.31132148,104970.0,104960.0,0.23074701]
[1750375379682,29.32084737,104970.0,104960.0,0.23074701]
[1750375380151,29.33037335,104970.0,104960.0,0.23074701]
[1750375380605,29.3398996,104970.0,104960.0,0.23074701]
[1750375380821,29.33989951,104970.0,104960.0,0.23074701]
[1750375381036,29.31132148,104970.0,104960.0,0.23074701]
[1750375381922,29.33037335,104970.0,104960.0,0.23074701]
[1750375382140,29.33037326,104970.0,104960.0,0.23074701]
[1750375382971,29.33989942,104970.0,104960.0,0.23074701]
[1750375383476,29.34942576,104970.0,104960.0,0.23074701]
[1750375383907,29.33989942,104970.0,104960.0,0.23074701]
[1750375384137,29.34942576,104970.0,104960.0,0.23074701]
[1750375384359,29.3399046,104970.0,104960.0,0.23074701]
[1750375385020,29.34943094,104970.0,104960.0,0.23074701]
[1750375385236,29.53996229,104970.0,104960.0,0.23074701]